Cogmind - Beta 9.6 @@@ ROGUE MODE // 2020.05.01 @ 18:17:53 Player: PhenomPhear Result: Self-destructed Performance ------------- Evolutions (1) 500 Regions Visited (4) 800 Robots Destroyed (24) 120 Value Destroyed (285) 285 Prototype IDs (2) 40 Alien Tech Used (0) 0 Bonus (0) 0 TOTAL SCORE: 1745 Bonus ------- None Cogmind --------- Core Integrity 69/400 Matter 300/300 Energy 99/100 System Corruption 0% Temperature Cool (0) Movement Core (50) Location -9/Storage Parts ------- > --- POWER (1) -------- (None) > --- PROPULSION (2) --- (None) > --- UTILITY (4) ------ (None) > --- WEAPON (2) ------- (None) > --- INVENTORY (4) ---- (None) Peak State ------------ > --- POWER ------------ Light Nuclear Core > --- PROPULSION ------- Compact Wheel Compact Wheel > --- UTILITY ---------- Medium Storage Unit Terrain Scanner > --- WEAPON ----------- Heavy EM Pulse Gun Rocket Launcher > --- INVENTORY -------- Light Ion Engine Heat Sink Terrain Scan Processor Medium Laser Medium Laser Light Assault Rifle [Rating: 11] Favorites ----------- Power Light Nuclear Core Engine Light Ion Engine Power Core Light Nuclear Core Propulsion Compact Wheel Wheel Compact Wheel Flight Unit Flight Unit Utility Medium Storage Unit Device Terrain Scanner Storage Medium Storage Unit Weapon Light Assault Rifle Energy Gun Heavy EM Pulse Gun Ballistic Gun Light Assault Rifle Launcher Rocket Launcher Build | -11 -10 -10 -9 -9 ------- Run | Scr Mat Min Mat Sto Slots Evolved 2 | . . . 2 . Power . | . . . . . Propulsion . | . . . . . Utility 2 | . . . 2 . Weapon . | . . . . . Parts Attached 27 | 6 7 1 13 . Power 4 | 1 1 . 2 . Engine 3 | 1 . . 2 . Core 1 | . 1 . . . Reactor . | . . . . . Propulsion 7 | 2 . . 5 . Treads . | . . . . . Leg . | . . . . . Wheel 6 | 2 . . 4 . Hover . | . . . . . Flight 1 | . . . 1 . Utility 5 | 1 2 . 2 . Device 2 | . 1 . 1 . Storage 3 | 1 1 . 1 . Processor . | . . . . . Hackware . | . . . . . Protection . | . . . . . Artifact . | . . . . . Weapon 11 | 2 4 1 4 . Energy Gun 3 | 1 1 . 1 . Energy Cannon . | . . . . . Ballistic Gun 6 | 1 2 . 3 . Ballistic Cannon . | . . . . . Launcher 2 | . 1 1 . . Special Weapon . | . . . . . Impact Weapon . | . . . . . Slashing Weapon . | . . . . . Piercing Weapon . | . . . . . Special Melee Weapon . | . . . . . Unidentified Prototypes . | . . . . . Parts Lost 16 | . . 6 9 1 Power 3 | . . 1 2 . Propulsion 5 | . . 2 2 1 Utility 2 | . . 1 1 . Weapon 6 | . . 2 4 . Highest Loss Streak 7 | . . 6 7 1 Average Slot Usage (%) 64 | . 97 41 35 8 Engine 4 | . 5 . 4 . Core 4 | . 8 5 . . Wheel 18 | . 28 12 11 . Flight 1 | . . . 2 8 Device 7 | . 12 6 3 . Storage 9 | . 14 6 5 . Energy Gun 4 | . 7 . 2 . Ballistic Gun 12 | . 19 8 5 . Naked Turns 86 | . . 59 21 6 Heaviest Build 21 | 10 21 16 19 . Greatest Support 32 | 32 32 32 32 4 Greatest Overweight (x) 3 | . . . 3 . Average Overweight (x) . | . . . . . Largest Inventory Capacity 10 | 6 10 8 8 4 Average Capacity 6 | 5 7 5 6 4 Most Carried 6 | 1 6 6 4 . Average Carried 3 | . 4 4 1 . Final Capacity 8 | 6 8 4 4 4 Final Carried 6 | 1 6 4 . . Class Distribution -------------------- 100% | Mutant Dominant Class ---------------- Mutant | -10/Materials Mutant | -10/Mines Mutant | -9/Materials Mutant | -9/Storage Resources | -11 -10 -10 -9 -9 ----------- Run | Scr Mat Min Mat Sto Matter Collected 613 | 192 195 . 226 . Remotely . | . . . . . Salvage Created 544 | . 206 33 305 . Parts 30 | . 11 . 19 . Haulers Intercepted 3 | . 2 . 1 . Recyclers Shooed . | . . . . . Parts Field Recycled . | . . . . . Retrieved Matter . | . . . . . Parts Self-Destructed . | . . . . . Prevented . | . . . . . Kills | -11 -10 -10 -9 -9 ------- Run | Scr Mat Min Mat Sto Combat Hostiles Destroyed 21 | . 2 12 7 . Guns 9 | . 2 . 7 . AOE 12 | . . 12 . . Classes Destroyed 5 | . 2 1 2 . Hauler 3 | . 2 . 1 . Swarmer 3 | . . . 3 . Grunt 4 | . 2 . 2 . Sentry 2 | . . . 2 . Assembled 12 | . . 12 . . Best Kill Streak 12 | . 2 12 3 . Combat Bots Only 12 | . 2 12 3 . Max Kills in Single Turn 4 | . 1 4 1 . Gunslinging . | . . . . . Exploded 4 | . . 4 . . Melee . | . . . . . Uniques/NPCs Destroyed . | . . . . . Combat | -11 -10 -10 -9 -9 -------- Run | Scr Mat Min Mat Sto Damage Taken 1530 | . 204 451 842 33 Core 560 | . 50 179 316 15 Absorbed by Shields . | . . . . . Core Remaining (%) 54 | 100 . 8 . . Volleys Fired 89 | . 30 6 53 . Largest 2 | . 2 1 2 . Hottest 73 | . 65 33 73 . Shots Fired 131 | . 59 6 66 . Gun 124 | . 58 . 66 . Cannon . | . . . . . Launcher 7 | . 1 6 . . Special . | . . . . . Kinetic 94 | . 48 . 46 . Thermal 20 | . . . 20 . Explosive 7 | . 1 6 . . Electromagnetic 10 | . 10 . . . Robot Hit Streak 18 | . 11 2 18 . Robot Miss Streak 7 | . 2 1 7 . Penetration Max . | . . . . . Secondary Targets . | . . . . . Shots Hit Robots 85 | . 42 1 42 . Core Hits 50 | . 8 29 13 . Critical Hits . | . . . . . Critical Kills . | . . . . . Critical Parts Destroyed . | . . . . . Melee Attacks . | . . . . . Impact . | . . . . . Slashing . | . . . . . Piercing . | . . . . . Sneak Attacks . | . . . . . Combat Hostiles . | . . . . . Follow-up Attacks . | . . . . . Damage Inflicted 1540 | . 413 670 457 . Guns 778 | . 328 . 450 . Cannons . | . . . . . Explosions 755 | . 85 670 . . Melee . | . . . . . Ramming 7 | . . . 7 . Kinetic 605 | . 266 . 339 . Thermal 111 | . . . 111 . Explosive 755 | . 85 670 . . Electromagnetic 62 | . 62 . . . Impact . | . . . . . Slashing . | . . . . . Piercing . | . . . . . Highest Corruption . | . . . . . Average Corruption . | . . . . . Corruption Purged . | . . . . . Overload Shots . | . . . . . Overflow Damage 6 | . 6 . . . Projectiles . | . . . . . Explosions 6 | . 6 . . . Melee . | . . . . . Knockbacks . | . . . . . Impact . | . . . . . Kinetic . | . . . . . Secondary . | . . . . . Self-Inflicted Damage 3 | . . . 3 . Shots . | . . . . . Rammed 2 | . . . 2 . Targets Rammed 2 | . . . 2 . Kicked . | . . . . . Crushed . | . . . . . Highest Temperature 137 | . 137 . 6 . Average Temperature 29 | . 32 . 2 . Received Heat Transfer 330 | . 117 . 204 9 Siege Activations . | . . . . . Robots Corrupted . | . . . . . Combat Hostiles . | . . . . . Parts Fried . | . . . . . Impact Corruptions . | . . . . . Robots Melted . | . . . . . Combat Hostiles . | . . . . . Parts Melted . | . . . . . Heat Transferred 333 | . . . 333 . Parts Sabotaged . | . . . . . Parts Stolen . | . . . . . Parts Stripped . | . . . . . Power Chain Reactions . | . . . . . Missiles Intercepted . | . . . . . Alert | -11 -10 -10 -9 -9 ------- Run | Scr Mat Min Mat Sto Peak Influence 131 | . 94 . 131 87 Average Influence 46 | . 41 . 72 67 Maximum Alert Level . | . . . . . Low Security (%) 100 | 100 100 100 100 100 Level 1 . | . . . . . Level 2 . | . . . . . Level 3 . | . . . . . Level 4 . | . . . . . Level 5 . | . . . . . High Security . | . . . . . Max Security . | . . . . . Squads Dispatched 2 | . . . 2 . Investigation 1 | . . . 1 . Extermination . | . . . . . Reinforcement 1 | . . . 1 . Assault . | . . . . . Garrison . | . . . . . Intercept . | . . . . . Construction Impeded . | . . . . . Haulers Reinforced . | . . . . . Stealth | -11 -10 -10 -9 -9 --------- Run | Scr Mat Min Mat Sto Distress Signals 3 | . 2 . 1 . Communications Jammed . | . . . . . Distress Signals . | . . . . . Times Spotted 44 | . 8 12 20 4 Peak Tracking Total 13 | . 4 13 7 5 Tactical Retreats 5 | . 1 2 2 . Traps | -11 -10 -10 -9 -9 ------- Run | Scr Mat Min Mat Sto Traps Triggered 1 | . . . 1 . Indirectly . | . . . . . Trap Hack Attempts . | . . . . . Triggered . | . . . . . Disarmed . | . . . . . Reprogrammed . | . . . . . Reused . | . . . . . Traps Extracted . | . . . . . Installed . | . . . . . Triggered . | . . . . . Machines | -11 -10 -10 -9 -9 ---------- Run | Scr Mat Min Mat Sto Machines Disabled 1 | . 1 . . . Max in Single Turn 1 | . 1 . . . Machines Sabotaged . | . . . . . Garrisons Compromised . | . . . . . Overloaded Fab Kills . | . . . . . Fab Network Shutdowns . | . . . . . Hacking | -11 -10 -10 -9 -9 --------- Run | Scr Mat Min Mat Sto Machines Accessed 2 | . . . 2 . Terminals 2 | . . . 2 . Fabricators . | . . . . . Repair Stations . | . . . . . Recycling Units . | . . . . . Scanalyzers . | . . . . . Garrison Access . | . . . . . Total Hacks 5 | . . . 5 . Successful 3 | . . . 3 . Failed 2 | . . . 2 . Catastrophic . | . . . . . Database Lockouts . | . . . . . Manual 5 | . . . 5 . Terminals 5 | . . . 5 . Fabricators . | . . . . . Repair Stations . | . . . . . Recycling Units . | . . . . . Scanalyzers . | . . . . . Garrison Access . | . . . . . Terminal Hacks 1 | . . . 1 . Prototype ID Bank 1 | . . . 1 . Fabricator Hacks . | . . . . . Repair Station Hacks . | . . . . . Recycling Unit Hacks . | . . . . . Scanalyzer . | . . . . . Garrison Access Hacks . | . . . . . Unauthorized Hacks 2 | . . . 2 . Terminals 2 | . . . 2 . Botnet 2 | . . . 2 . Fabricators . | . . . . . Repair Stations . | . . . . . Recycling Units . | . . . . . Scanalyzers . | . . . . . Garrison Access . | . . . . . Data Cores Recovered . | . . . . . Used . | . . . . . Hacking Detections 1 | . . . 1 . Full Trace Events . | . . . . . Feedback Events . | . . . . . Feedback Blocked . | . . . . . Robot Schematics Acquired . | . . . . . Robots Built . | . . . . . Matter . | . . . . . Time . | . . . . . Total Robot Build Rating . | . . . . . Part Schematics Acquired . | . . . . . Parts Built . | . . . . . Matter . | . . . . . Time . | . . . . . Total Part Build Rating . | . . . . . Parts Repaired . | . . . . . Time . | . . . . . Parts Recycled . | . . . . . Recycled Matter . | . . . . . Retrieved Matter . | . . . . . Retrieved Components . | . . . . . Parts Scanalyzed . | . . . . . Part Schematics Acquired . | . . . . . Parts Damaged . | . . . . . Bothacking | -11 -10 -10 -9 -9 ------------ Run | Scr Mat Min Mat Sto Used RIF Installer . | . . . . . Robots Hacked . | . . . . . Non-combat . | . . . . . Combat . | . . . . . Robot Hacks Applied . | . . . . . Relay Couplers Released . | . . . . . Robots Rewired . | . . . . . Allies Hacked . | . . . . . Hacks Repelled . | . . . . . Allies | -11 -10 -10 -9 -9 -------- Run | Scr Mat Min Mat Sto Total Allies . | . . . . . Largest Group . | . . . . . Highest-Rated Group . | . . . . . Highest-Rated Ally . | . . . . . Total Orders . | . . . . . Ally Attacks . | . . . . . Total Damage . | . . . . . Kills . | . . . . . Allies Corrupted . | . . . . . Allies Melted . | . . . . . Intel | -11 -10 -10 -9 -9 ------- Run | Scr Mat Min Mat Sto Robot Analysis Total . | . . . . . Derelict Logs Recovered . | . . . . . Drone Launches . | . . . . . Drone Recoveries . | . . . . . Exploration | -11 -10 -10 -9 -9 ------------- Run | Scr Mat Min Mat Sto Turns Passed 1012 | 70 447 105 356 34 Spaces Moved 949 | 62 346 151 309 81 Core 179 | 4 . 121 43 11 Treads . | . . . . . Legs . | . . . . . Wheels 533 | 58 346 30 99 . Hover . | . . . . . Flight 237 | . . . 167 70 Fastest Speed 40 | 50 100 50 40 40 Average Speed 76 | 96 100 59 64 41 Slowest Speed 200 | 100 100 100 200 50 Overloaded Moves . | . . . . . Propulsion Burnouts . | . . . . . Robots Hopped 1 | . . . 1 . Cave-ins Triggered . | . . . . . Exploration Rate (%) 25 | 4 37 50 19 19 Regions Visited 4 Branch Regions 2 Pre-discovered Areas . | . . . . . Known Exits Taken . | . . . . . Unknown Exits Taken 4 | 1 1 1 1 . Scrap Searched . | . . . . . Spaces Dug . | . . . . . Terrain Destroyed 49 | . 4 45 . . Melee . | . . . . . Projectile . | . . . . . AOE 49 | . 4 45 . . Actions | -11 -10 -10 -9 -9 --------- Run | Scr Mat Min Mat Sto Total 1105 | 68 396 158 402 81 Wait 25 | . 5 . 20 . Move 943 | 61 345 150 306 81 Hop 1 | . . . 1 . Pick Up 8 | 1 5 . 2 . Fast Attach 17 | 6 4 . 7 . Attach 4 | . . . 4 . Detach . | . . . . . Swap 6 | . 3 1 2 . Drop 10 | . 4 1 5 . Fire 89 | . 30 6 53 . Melee . | . . . . . Ram 2 | . . . 2 . Kick . | . . . . . Crush . | . . . . . Escape Stasis . | . . . . . Rewire . | . . . . . Trap . | . . . . . Miscellaneous . | . . . . . Route ------- -11/Scrapyard -10/Materials -10/Mines -9/Materials -9/Storage History --------- Turn | Location | Event 3 | -11/Scrapyard | Discovered new exit (range 15) 71 | -11/Scrapyard | Entered Materials 338 | -10/Materials | Build established: Mutant 503 | -10/Materials | Discovered new exit (range 15) 518 | -10/Materials | Entered Mines 539 | -10/Mines | Assembled infested the area 558 | -10/Mines | Core integrity fell below 50% 565 | -10/Mines | Core integrity fell below 20% 573 | -10/Mines | Destroyed 12 combat bots 595 | -10/Mines | Lost 6 parts (1p2n1u2w) 620 | -10/Mines | Discovered new exit (range 6) 623 | -10/Mines | Entered Materials 623 | -9/Materials | Evolved 2 slots: Utility x2 624 | -9/Materials | Discovered new exit (range 15) 875 | -9/Materials | Core integrity fell below 50% 896 | -9/Materials | Lost 7 parts (2p2n1u2w) 979 | -9/Materials | Entered Storage 1008 | -9/Storage | Core integrity fell below 20% 1013 | -9/Storage | Self-destructed Last Messages --------------- 00878_ K-01 Serf collects debris. 00880_ Acquired 19 matter. 00881_ K-01 Serf collects debris. 00892_ Acquired 29 matter. 00902_ Lgt. Assault Rifle destroyed. 00904_ Acquired Flight Unit. 00905_ Dropped Med. Storage Unit. 00906_ Acquired 10 matter. 00942_ W-16 Scout sends out distress signal. 00945_ C-30 ARC bursts open, deploying its payload. 00945_ G-47 Trooper unfolds itself. 00956_ Triggered Alarm Trap. 00956_ An alarm sounds. 00956_ ALERT: Alarm triggered, dispatching investigation squad. LOCATION=UNKNOWN GOAL=ESCAPE 00997_ K-01 Serf collects debris. 01007_ Flight Unit destroyed. 01013_ C-30 ARC bursts open, deploying its payload. 01013_ S-10 Pest unfolds itself. Map ----- +----------------------------------------------------+ | ?????# # #??????? | | ?????# + """ [#??????? | | ?????# # """ #??????? | | ?????######## # """ [ ???????? | | ????????????# #? ???????? | | ????????????# ##########??????? | | ????????????# # #??????? | | ????????????# # = #??????? | | ????????????# + #??????? | | ????????????# # ! #??????? | | ????????????# # / #### | | ????????????# #! ! =+ | | ????????????# # #### | | ????????????# # #??????? | | ????????????# # #??????? | | ????????????# ##########??????? | | ????????????# #???????????????? | | ????????????# #???????????????? | | ????????????# #???????????????? | | ????????????# #???????????????? | | ????????????# #???????????????? | | ????????????# #???????????????? | | ????????????# #???????????????? | | ??########### #???????????????? | | ??# # #???????????????? | | ??# @ # #???????????????? | | ??# # #???????????????? | | ??# """"""s# #???????????????? | | ??# "????" /s #???????????????? | | ??# "????" #s #???????????????? | | ??# """""" # #???????????????? | | ??# # #???????????????? | | ??####+###### #???????????????? | | ???? ???# #???????????????? | | ??# """ ?# #???????????????? | | ??## """ # #???????????????? | | ???# """ # #???????????????? | | ???# """ # #???????????????? | | ???# """ + /???????????????? | | ???# ???? # #???????????????? | | ???# ????? # #???????????????? | | ???# ??????? #???????????????? | | ???##"??????? #???????????????? | | ????#???????? ???????????????? | | ????????????? ????????????????? | | ????????????????????????????????? | | ????????????????????????????????? | | ????????????????????????????????? | | ????????????????????????????????? | | ????????????????????????????????? | +----------------------------------------------------+ Best States ------------- Heat Dissipation 38 Energy Generation 14 Energy Capacity 250 Matter Stores 300 Matter Capacity 300 Sight Range 16 Terrain Scan Range 14 Terrain Scan Density 10 Evasion (%) 62 Item Schematics ----------------- None Robot Schematics ------------------ None Fabricated ------------ Nothing Alien Tech Used ----------------- None Achievements -------------- None Challenges ------------ None Game ------ Seed LaserThunderComputer Manual? 0 Play Time 00:09:22 Cumulative 1051.2 hours Start 2020.05.01 @ 18:09:00 End 2020.05.01 @ 18:17:53 Sessions 1 Manual Loads 0 Difficulty Rogue Special Mode None Game No. 637 Rogue 637 Adventurer 0 Explorer 0 Win Type - Total 18 Types 10/1/4/3/0/0/0 Lore% 89 Gallery% 94 Achievement% 81 Wizard Run 0 Options --------- ASCII 0 Keyboard 0 Movement Mouse Keybinds 0 Fullscreen 2 Font 24/Crisp Map View 76x50 Tactical HUD 1 Map Filters NONE Filters NONE Steam 1 RUN: 156aee43-bd59-4096-b6fa-11063c69e96d